bitfinex/quotes_ETHUSD_20220305
["timestamp","ask_amount","ask_price","bid_price","bid_amount"]
[1646455083665,1.50691508,2618.4,2618.3,1.0]
[1646455083966,1.50691508,2618.4,2618.3,3.90592213]
[1646455084167,1.50691508,2618.4,2618.3,15.55592213]
[1646455084368,1.50691508,2618.4,2618.3,16.55592213]
[1646455084571,1.50691508,2618.4,2618.3,17.86092213]
[1646455085410,1.50691508,2618.4,2618.3,14.36092213]
[1646455086314,1.46799072,2618.4,2618.3,14.36092213]
[1646455088018,0.3818,2619.0,2618.5,11.65]
[1646455088316,0.36537473,2619.3,2618.7,12.60481]
[1646455088572,0.36537473,2619.3,2618.9,11.65]
[1646455088771,0.93037756,2619.6,2619.2,1.0]
[1646455089171,0.93037756,2619.7,2619.2,1.0]
[1646455089977,0.00256752,2619.6,2619.2,1.0]
[1646455090277,0.93294508,2619.6,2619.2,1.0]
[1646455090877,0.93037756,2619.6,2619.2,1.0]
[1646455091079,0.00193418,2619.5,2619.2,1.58335877]
[1646455091280,0.00193418,2619.5,2619.2,0.58335877]
[1646455091481,1.10213295,2619.4,2618.5,1.0]
[1646455091884,1.10213295,2619.4,2618.4,0.25]
[1646455091885,1.05213295,2619.4,2618.7,1.0]
[1646455092083,1.98251051,2619.4,2618.7,1.0]
[1646455092325,0.00252126,2619.1,2618.7,1.0]
[1646455092512,0.00252126,2619.1,2619.0,14.934]
[1646455092718,0.00096,2619.8,2619.1,3.1]
[1646455092912,0.00096,2619.8,2619.1,3.405]
[1646455093112,0.00096,2619.8,2619.1,4.405]
[1646455093318,0.00096,2620.0,2619.2,0.9546278]
[1646455093515,0.00096,2620.0,2619.2,12.6046278]
[1646455093716,0.92514167,2619.8,2619.2,13.6046278]
[1646455094519,3.5787238,2620.3,2619.8,16.35]
[1646455094718,0.0320667,2620.4,2620.0,11.65]
[1646455094922,0.94507416,2620.6,2620.0,11.65]
[1646455095117,0.0146966,2620.6,2620.0,12.65]
[1646455095319,0.0146966,2620.6,2620.5,1.0]
[1646455099373,0.0146966,2620.6,2620.5,13.6497]
[1646455099572,0.0146966,2620.6,2620.5,16.568629]
[1646455099833,0.0186458,2621.0,2620.6,4.8]
[1646455100030,11.13457756,2621.5,2620.6,4.8]
[1646455100031,0.93037756,2621.6,2621.1,11.65]
[1646455100229,0.0166561,2621.7,2621.2,0.305]
[1646455100426,0.031119,2621.9,2621.4,11.65]
[1646455100627,1.56527514,2621.8,2621.6,1.953768]
[1646455100826,1.56527514,2621.8,2621.6,2.96409838]
[1646455101227,1.56527514,2621.8,2621.6,2.953768]
[1646455101425,1.56527514,2621.8,2621.6,3.907558]
[1646455101627,1.56527514,2621.8,2621.6,2.907558]
[1646455101826,1.56527514,2621.8,2621.6,3.907558]
[1646455102031,1.5679323,2621.8,2621.6,3.907558]
[1646455102233,1.5679323,2621.8,2621.6,2.953768]
[1646455102431,1.5679323,2621.8,2621.6,1.0]
[1646455102635,1.5679323,2621.8,2621.6,2.0]
[1646455102835,1.5679323,2621.8,2621.6,1.0]
[1646455103032,1.56527514,2621.8,2621.6,1.0]
[1646455103233,1.5679323,2621.8,2621.5,3.31079254]
[1646455103432,0.00265716,2621.8,2621.5,3.31079254]
[1646455103658,0.00265716,2621.8,2621.6,1.0]
[1646455104058,0.00265716,2621.8,2621.5,14.2453224]
[1646455104259,0.031119,2621.9,2621.5,3.5953224]
[1646455104458,0.031119,2621.9,2621.6,1.0]
[1646455104459,0.00265716,2621.8,2621.6,1.0]
[1646455105063,0.00265716,2621.8,2621.6,12.65]
[1646455105263,0.00265716,2621.8,2621.6,2.9537634]
[1646455105468,0.91146582,2622.4,2621.6,2.9537634]
[1646455105665,1.56486105,2622.3,2621.8,1.00340399]
[1646455105963,1.56486105,2622.3,2621.8,0.95373]
[1646455106163,5.6303,2622.5,2621.8,0.95373]
[1646455106164,1.56486105,2622.2,2621.8,0.95373]
[1646455106463,2.2811,2622.5,2621.6,1.0]
[1646455106662,1.5647856,2622.1,2621.5,4.5490424]
[1646455106868,2.29169826,2622.5,2621.9,1.13353653]
[1646455107069,0.01059826,2622.5,2622.0,3.21217]
[1646455107317,0.01059826,2622.5,2622.1,3.5]
[1646455107508,0.0160334,2622.6,2622.4,3.7]
[1646455107710,0.0160334,2622.6,2622.5,0.305]
[1646455108117,0.0160334,2622.6,2622.5,1.50502209]
[1646455108312,0.0160334,2622.6,2622.5,2.50502209]
[1646455108712,0.0160334,2622.6,2622.5,3.50502209]
[1646455108911,0.0160334,2622.6,2622.5,2.50502209]
[1646455109111,0.0160334,2622.6,2622.5,7.00502209]
[1646455109313,0.0160334,2622.6,2622.5,3.50502209]
[1646455109513,0.0160334,2622.6,2622.5,18.65502209]
[1646455109912,0.0288156,2622.8,2622.6,15.95]
[1646455110111,0.0288156,2622.8,2622.6,16.90342]
[1646455110312,0.0288156,2622.8,2622.6,17.90342]
[1646455110513,0.05933596,2622.9,2622.8,12.6033508]
[1646455110514,0.01834592,2622.9,2622.8,12.6033508]
[1646455110719,0.01834592,2622.9,2622.8,13.6033508]
[1646455110913,0.01834592,2622.9,2622.8,14.6033508]
[1646455111156,0.0300469,2623.3,2622.9,14.25]
[1646455111355,0.05422294,2623.0,2622.9,15.25]
[1646455111561,0.0290869,2623.3,2623.1,14.85]
[1646455111759,0.0290869,2623.3,2623.1,16.8032571]
[1646455112060,0.035185,2623.7,2623.2,16.45]
[1646455112259,1.5641772,2623.6,2623.4,11.65]
[1646455112661,0.0291851,2623.9,2623.6,16.45]
[1646455112862,0.0291851,2623.9,2623.6,18.505]
[1646455113271,0.0166561,2624.3,2623.7,16.35]
[1646455113466,0.0166561,2624.3,2623.9,11.65]
[1646455113663,0.0166561,2624.3,2624.0,0.305]
[1646455113864,0.0166561,2624.3,2624.1,12.62631681]
[1646455114060,0.0166561,2624.3,2624.2,0.305]
[1646455114461,0.06326682,2624.3,2624.2,0.305]
[1646455114662,0.0275961,2624.5,2624.3,15.10275]
[1646455114910,0.0275961,2624.5,2624.3,16.40775]
[1646455116212,0.0275961,2624.5,2624.3,3.2104756]
[1646455116417,0.03025386,2624.5,2624.3,1.2577256]
[1646455116613,0.03025386,2624.5,2624.3,1.305]
[1646455116812,0.03025386,2624.5,2624.3,0.305]
[1646455117412,0.0275961,2624.5,2624.3,0.305]
[1646455117813,0.03025386,2624.5,2624.3,0.305]
[1646455118213,0.03025386,2624.5,2624.1,11.20366145]
[1646455118668,0.0275961,2624.5,2624.1,1.0]
[1646455118867,1.0166897,2624.8,2624.1,3.5]
[1646455118868,0.98434117,2624.8,2624.1,3.5]
[1646455119066,0.98434117,2624.8,2624.0,1.305]
[1646455119067,0.03309106,2624.4,2624.0,1.305]
[1646455119266,0.03309106,2624.4,2624.0,0.305]
[1646455120272,0.92030351,2624.4,2624.0,0.305]
[1646455120673,0.92030351,2624.4,2623.6,0.80925615]
[1646455120873,0.92030351,2624.4,2623.5,1.0]
[1646455120874,0.92126351,2624.4,2623.5,1.0]
[1646455121074,0.92126351,2624.4,2623.0,3.4146675]
[1646455121278,1.06403176,2623.7,2623.1,0.00228648]
[1646455121473,1.06403176,2623.7,2623.6,1.0]
[1646455121680,4.56403176,2623.7,2623.6,1.0]
[1646455121879,4.7,2623.6,2623.1,0.00228648]
[1646455122079,3.5,2623.5,2623.1,0.00228648]
[1646455122337,4.56499176,2623.7,2622.5,0.20818506]
[1646455122537,1.1795,2624.3,2622.5,0.20818506]
[1646455122538,1.15567007,2623.3,2623.1,0.00228648]
[1646455122738,0.00096,2623.6,2623.1,0.00228648]
[1646455122937,0.00096,2623.9,2623.1,0.00228648]
[1646455123137,0.00096,2624.1,2623.1,0.00228648]
[1646455123335,0.00096,2624.1,2622.6,2.60606183]
[1646455123536,0.00096,2624.1,2622.6,2.6932119]
[1646455123737,0.00096,2624.1,2623.1,0.00228648]
[1646455124039,0.00096,2624.1,2622.5,2.9067057]
[1646455124040,4.7,2624.0,2622.5,1.02732951]
[1646455124237,3.50096,2623.9,2622.5,1.02732951]
[1646455124636,3.50096,2623.9,2622.6,0.1906]
[1646455125038,1.11505569,2623.2,2622.6,0.1906]
[1646455126862,0.00096,2623.6,2622.6,0.1906]
[1646455127564,0.00189747,2623.7,2622.8,1.953366]
[1646455127960,0.99177696,2623.7,2623.0,1.15424857]
[1646455128164,0.98987949,2623.7,2623.0,1.15424857]
[1646455128464,0.99253725,2623.7,2623.0,1.15678274]
[1646455128864,0.00265776,2623.7,2623.0,1.15678274]
[1646455129064,0.00265776,2623.7,2623.0,16.92485764]
[1646455129270,0.14411776,2624.1,2623.1,4.7]
[1646455129465,0.14411776,2624.1,2623.2,0.305]
[1646455129670,0.00265783,2623.7,2623.2,0.305]
[1646455129920,0.00265783,2623.7,2623.2,11.955]
[1646455130216,0.00265783,2623.7,2623.2,12.955]
[1646455130616,0.00096,2624.3,2623.5,11.65]
[1646455130821,0.00189779,2623.8,2623.7,11.65]
[1646455131017,0.00854918,2624.5,2623.9,11.65]
[1646455131218,0.00758918,2624.5,2624.1,12.65]
[1646455131419,0.0145711,2625.0,2624.5,11.65]
[1646455131623,0.00096,2625.0,2624.7,12.0305]
[1646455131826,0.0261432,2625.4,2624.9,16.35]
[1646455132021,0.0320667,2625.7,2625.1,4.7]
[1646455132219,0.0723,2625.5,2625.1,5.7]
[1646455132618,0.0723,2625.5,2625.3,1.10804914]
[1646455133020,0.0320667,2625.7,2625.3,1.10804914]
[1646455134569,0.01748841,2625.6,2625.3,1.10804914]
[1646455134971,0.01748841,2625.6,2625.3,14.66276914]
[1646455135168,0.01748841,2625.6,2625.3,3.01276914]
[1646455135368,0.0148318,2625.6,2625.3,4.01276914]
[1646455135571,0.0148318,2625.6,2625.3,3.20316914]
[1646455135769,0.01748841,2625.6,2625.3,2.29844914]
[1646455135969,0.01748841,2625.6,2625.3,1.29844914]
[1646455136669,0.0148318,2625.6,2625.3,1.29844914]
[1646455136871,0.01748841,2625.6,2625.3,1.29844914]
[1646455137307,0.01748841,2625.6,2625.3,1.10804914]
[1646455137709,0.0148318,2625.6,2625.4,11.65]
[1646455138108,0.01748841,2625.6,2625.4,16.15]
[1646455138910,0.02864201,2625.9,2625.8,0.9757208]
[1646455139111,1.10773587,2625.7,2625.5,3.5]
[1646455139312,0.00265659,2625.6,2625.5,4.5]
[1646455139511,0.02864201,2625.9,2625.6,5.005]
[1646455139716,0.02864201,2625.9,2625.8,12.65]
[1646455139917,0.0437175,2626.5,2625.9,16.35]
[1646455140117,0.0437175,2626.5,2626.1,0.92841311]
[1646455140118,0.0493226,2626.3,2626.1,0.92841311]
[1646455140515,0.0493226,2626.3,2626.1,1.23341311]
[1646455140715,0.0493226,2626.3,2626.1,3.13759261]
[1646455140915,0.0493226,2626.3,2626.1,4.13759261]
[1646455141161,0.0493226,2626.3,2626.1,5.13759261]
[1646455141361,0.0493226,2626.3,2626.2,12.60207]
[1646455141567,0.0437175,2626.5,2626.4,4.7]
[1646455141762,0.0282752,2626.6,2626.5,4.0]
[1646455141963,0.0144345,2627.1,2626.6,3.2]
[1646455142163,0.0144345,2627.1,2626.6,3.505]
[1646455142365,0.0144345,2627.1,2626.6,4.505]
[1646455142561,0.0144345,2627.1,2626.7,0.9518175]
[1646455142762,0.0144345,2627.1,2626.8,0.95186]
[1646455142763,0.00265888,2627.0,2626.8,0.95186]
[1646455143163,0.00265888,2627.0,2626.8,2.8555525]
[1646455143362,0.00265888,2627.0,2626.7,1.0]
[1646455143563,0.00265888,2627.0,2626.2,2.57292142]
[1646455143763,1.46469007,2627.0,2626.1,0.305]
[1646455143962,0.93803565,2626.6,2626.1,0.305]
[1646455144162,0.93803565,2626.6,2625.6,11.65]
[1646455144363,0.93803565,2626.6,2626.3,1.0]
[1646455144868,0.93803565,2626.6,2626.2,0.0357988]
[1646455144869,3.5,2626.5,2626.2,0.0357988]
[1646455145070,3.5,2626.5,2625.5,0.1902]
[1646455145267,3.4,2626.5,2625.4,1.25]
[1646455145467,0.00096,2626.4,2625.4,1.25]
[1646455146168,0.00096,2626.4,2625.6,0.86604147]
[1646455146767,0.00096,2626.4,2625.5,0.1904]
[1646455147672,0.00096,2626.4,2625.7,0.00261732]
[1646455148468,3.50096,2626.8,2625.7,0.00261732]
[1646455148672,3.50096,2626.8,2625.5,0.1904]
[1646455148874,3.50096,2626.8,2625.7,0.00202842]
[1646455149673,3.69116,2626.8,2625.7,0.00202842]
[1646455149873,1.19631071,2626.5,2625.7,0.96669259]
[1646455150075,1.19727071,2626.5,2625.7,0.96872101]
[1646455151075,0.00096,2626.5,2625.7,0.96669259]
[1646455151276,0.00096,2626.7,2625.8,1.0]
[1646455151676,0.19116,2626.8,2625.7,0.96872101]
[1646455151877,0.19116,2626.8,2625.9,1.0]
[1646455152515,0.19116,2626.8,2626.1,1.01531291]
[1646455153116,0.00096,2626.8,2626.1,1.01531291]
[1646455153319,0.0190456,2626.9,2626.2,1.0]
[1646455154315,1.16725565,2626.8,2626.2,1.0]
[1646455154917,3.5,2626.7,2626.0,0.305]
[1646455155117,3.5,2626.7,2625.7,0.00216093]
[1646455155118,3.50096,2626.7,2625.9,1.0]
[1646455155522,3.50096,2626.7,2626.1,1.0]
[1646455155719,3.5,2626.7,2626.1,1.0]
[1646455156187,1.16821565,2626.8,2626.1,1.0]
[1646455156785,1.06821565,2626.8,2626.1,1.0]
[1646455156985,3.50096,2626.8,2626.1,1.0]
[1646455157189,0.00096,2626.8,2626.1,1.0]
[1646455157385,3.50096,2626.8,2626.1,1.0]
[1646455157586,0.00096,2626.8,2626.1,1.0]
[1646455158188,0.00096,2626.8,2626.2,0.95254381]
[1646455158387,0.0190456,2626.9,2626.2,0.95254381]
[1646455159287,0.0190456,2626.9,2626.1,1.0]
[1646455160424,1.17760219,2626.7,2626.1,1.0]
[1646455162127,0.0190456,2626.9,2626.1,1.0]
[1646455163759,1.56216737,2626.8,2626.1,1.0]
[1646455163957,1.56312737,2626.8,2626.1,1.0]
[1646455164158,0.9400903,2626.6,2625.7,0.54082861]
[1646455164358,0.00096,2626.5,2625.7,0.54082861]
[1646455164558,0.00096,2626.5,2625.7,0.54296492]
[1646455164758,1.56312971,2626.5,2625.8,1.0]
[1646455164964,1.56216971,2626.5,2625.8,1.0]
[1646455165162,0.9410503,2626.6,2625.8,1.0]
[1646455165362,0.8410503,2626.6,2625.8,1.0]
[1646455166562,1.16578314,2626.2,2625.8,1.0]
[1646455169812,0.00244013,2626.3,2625.8,1.0]
[1646455170014,0.00244013,2626.3,2625.9,0.457]
[1646455170218,0.00096,2626.6,2625.9,0.457]
[1646455170416,1.56311278,2626.7,2625.9,0.457]
[1646455170614,0.00243541,2626.3,2625.9,0.457]
[1646455171463,0.00096,2626.5,2625.9,0.457]
[1646455171663,1.56215278,2626.6,2625.9,0.457]
[1646455171664,0.00243544,2626.3,2625.9,0.457]
[1646455172669,0.00096,2626.5,2625.9,0.457]
[1646455172870,0.00238977,2626.3,2625.9,0.457]
[1646455173873,0.00096,2626.5,2625.9,0.457]
[1646455174071,0.00239025,2626.3,2625.9,0.457]
[1646455175121,0.00096,2626.5,2625.9,0.457]
[1646455175314,0.00165497,2626.3,2626.2,1.0]
[1646455175517,0.00165497,2626.3,2626.2,1.457]
[1646455176318,2.24649406,2626.6,2626.2,1.457]
[1646455176521,0.00228398,2626.4,2626.2,1.457]
[1646455177118,1.56431694,2626.4,2626.2,1.457]
[1646455177321,1.56203296,2626.3,2626.2,1.457]
[1646455177520,2.24649406,2626.6,2626.2,1.457]
[1646455177721,0.00239604,2626.4,2626.2,1.457]
[1646455177920,1.564429,2626.4,2626.2,1.457]
[1646455178120,1.56203296,2626.3,2626.2,2.02123484]
[1646455178774,1.56203296,2626.6,2626.2,2.02123484]
[1646455179075,0.00239605,2626.4,2626.2,2.02123484]
[1646455179971,2.24649406,2626.6,2626.2,2.02123484]
[1646455180171,0.00240841,2626.4,2626.2,2.02123484]
[1646455180372,1.56444137,2626.4,2626.2,2.02123484]
[1646455180673,1.56203296,2626.3,2626.2,2.02123484]
[1646455181474,0.00228542,2626.4,2626.2,2.02123484]
[1646455181879,1.56431838,2626.4,2626.2,2.02123484]
[1646455182078,0.00228542,2626.4,2626.2,2.02123484]
[1646455182320,2.24649406,2626.6,2626.2,2.02123484]
[1646455182522,0.00228541,2626.4,2626.2,2.02123484]
[1646455183622,0.00228262,2626.4,2626.2,2.02123484]
[1646455184125,0.00228262,2626.4,2626.2,0.35504515]
[1646455184525,0.00228262,2626.4,2626.2,1.35504515]
[1646455184727,2.24649406,2626.6,2626.2,1.35504515]
[1646455184924,0.00229046,2626.4,2626.2,1.35504515]
[1646455185824,1.56203296,2626.6,2626.2,1.35504515]
[1646455186063,0.00229046,2626.4,2626.2,1.35504515]
[1646455186264,1.56432342,2626.4,2626.2,1.35504515]
[1646455186564,1.56203296,2626.3,2626.2,1.35504515]
[1646455187163,1.56203296,2626.5,2626.2,1.35504515]
[1646455187362,1.56432406,2626.4,2626.2,1.35504515]
[1646455187563,1.56203296,2626.3,2626.2,1.35504515]
[1646455188162,0.0022911,2626.4,2626.2,1.35504515]
[1646455188363,2.24649406,2626.7,2626.2,1.35504515]
[1646455188564,0.00229067,2626.4,2626.2,1.35504515]
[1646455189366,1.56432363,2626.4,2626.2,1.35504515]
[1646455189570,1.56203296,2626.3,2626.2,1.35504515]
[1646455189809,0.00229066,2626.4,2626.2,1.35504515]
[1646455190316,1.21076846,2626.4,2626.2,1.35504515]
[1646455190516,1.56203296,2626.3,2626.2,1.35504515]
[1646455192722,1.56203296,2626.3,2625.6,0.00213898]
[1646455193120,1.56203296,2626.3,2625.4,0.25]
[1646455193121,2.24745406,2626.3,2625.4,0.25]
[1646455193424,2.24745406,2626.3,2625.6,0.00213898]
[1646455193425,1.12651278,2625.8,2625.6,0.00213898]
[1646455193664,0.0032504,2626.3,2625.6,0.00213898]
[1646455193665,1.56227998,2625.7,2625.6,0.00213898]
[1646455193866,0.6867515,2626.3,2625.6,0.00213898]
[1646455194068,0.6877115,2626.3,2625.6,0.00213898]
[1646455194272,1.56227998,2626.2,2625.3,1.0]
[1646455194469,0.00096,2626.3,2625.3,1.0]
[1646455194470,2.24674108,2626.1,2625.3,1.0]
[1646455194672,1.56227998,2626.0,2625.6,0.00213908]
[1646455194868,1.56227998,2625.9,2625.6,0.00213908]
[1646455195070,1.56227998,2625.8,2625.6,0.00213908]
[1646455195370,1.56227998,2625.7,2625.6,0.00213908]
[1646455195569,1.56227998,2625.7,2625.3,1.0]
[1646455195767,1.56227998,2625.6,2625.3,1.0]
[1646455195969,1.56227998,2625.5,2625.3,1.0]
[1646455196168,0.93316164,2626.0,2625.3,1.0]
[1646455196370,1.56242961,2625.9,2625.3,1.0]
[1646455196569,1.22409519,2625.6,2625.3,1.0]
[1646455196769,1.56242961,2625.5,2625.3,1.0]
[1646455198214,1.56242961,2625.5,2625.3,0.00214465]
[1646455199014,1.56242961,2625.5,2625.4,0.04307976]
[1646455199820,4.7,2625.4,2624.5,0.457]
[1646455200017,1.56242961,2625.3,2624.5,0.457]
[1646455200921,1.12047498,2624.9,2624.5,0.457]
[1646455201963,4.7,2625.4,2624.5,0.457]
[1646455202171,1.56277281,2625.3,2624.5,0.457]
[1646455203371,1.17147255,2625.0,2624.5,0.457]
[1646455203570,1.56277281,2624.9,2624.5,0.457]
[1646455204170,1.17147255,2625.0,2624.6,0.00213868]
[1646455205018,1.17147255,2625.0,2624.4,0.56167513]
[1646455205414,1.56285814,2624.9,2624.7,0.00230455]
[1646455205915,1.17147255,2625.0,2624.7,0.00230455]
[1646455206317,1.17147255,2625.0,2624.4,0.56167513]
[1646455206718,0.02426368,2625.2,2624.7,0.0023045]
[1646455206918,1.56277991,2625.1,2624.7,0.0023045]
[1646455207521,1.56277991,2625.1,2624.4,0.56167513]
[1646455207717,1.56277991,2625.1,2624.8,0.00230446]
[1646455207918,1.20509478,2625.0,2624.8,0.00230446]
[1646455208568,0.02426368,2625.2,2624.8,0.00230446]
[1646455208860,0.02419233,2624.8,2624.4,0.46397959]
[1646455209060,0.02419233,2624.8,2624.4,0.92097959]
[1646455210264,0.02419233,2624.8,2624.5,0.99837807]
[1646455211268,0.02419233,2624.8,2624.4,0.92097959]
[1646455212517,0.02419233,2624.8,2624.5,0.00261033]
[1646455212917,0.02419233,2624.8,2624.5,1.1797978]
[1646455213517,0.02419233,2624.8,2624.5,1.17718747]
[1646455213717,0.02419233,2624.8,2624.5,1.17979775]
[1646455214718,0.02419233,2624.8,2624.5,1.17718747]
[1646455214919,0.02419233,2624.8,2624.5,1.17979775]
[1646455215720,0.02419233,2624.8,2624.5,0.00261028]
[1646455215922,0.02419233,2624.8,2624.4,0.46397959]
[1646455216180,0.02419233,2624.8,2624.5,0.45961028]
[1646455217180,0.02419233,2624.8,2624.5,0.457]
[1646455217380,0.02419233,2624.8,2624.5,0.45944714]
[1646455217988,0.02419233,2624.8,2624.5,0.00244714]
[1646455218482,1.56307195,2624.7,2624.0,0.457]
[1646455218682,0.02419233,2624.8,2624.5,0.00244714]
[1646455219583,0.02419233,2624.8,2624.3,0.457]
[1646455219811,0.02419233,2624.8,2624.5,0.00244714]
[1646455220820,0.02419233,2624.8,2624.6,0.457]
[1646455221022,0.02419233,2624.8,2624.7,3.957]
[1646455221434,0.02419233,2624.8,2624.7,0.457]
[1646455221616,0.02419233,2624.8,2624.7,1.63864725]
[1646455222921,6.7386,2625.7,2624.8,4.4]
[1646455223126,6.7386,2625.7,2624.9,3.957]
[1646455223127,1.56257604,2625.6,2624.9,3.957]
[1646455223322,3.7882,2625.7,2624.9,3.957]
[1646455223574,3.7882,2625.7,2625.3,1.0]
[1646455223762,5.1943,2625.8,2625.4,0.457]
[1646455223964,2.9334,2625.8,2625.4,0.457]
[1646455224367,2.3651,2626.1,2625.4,0.457]
[1646455224569,1.56241236,2626.0,2625.4,0.457]
[1646455224867,1.56241236,2625.9,2625.4,0.457]
[1646455225067,1.56241236,2625.8,2625.4,0.457]
[1646455225267,0.0025225,2626.0,2625.4,0.457]
[1646455225674,1.56238025,2626.2,2625.4,0.457]
[1646455225871,0.0025225,2626.0,2625.4,0.457]
[1646455226870,1.56238025,2626.0,2625.4,0.457]
[1646455227073,1.56238025,2625.9,2625.4,0.457]
[1646455227315,0.00252257,2626.0,2625.4,0.457]
[1646455227916,1.56231432,2626.2,2625.4,0.457]
[1646455228219,0.00251669,2626.0,2625.4,0.457]
[1646455229221,1.56231432,2626.2,2625.4,0.457]
[1646455229423,0.00251669,2626.0,2625.4,0.457]
[1646455230327,1.56231432,2626.1,2625.4,0.457]
[1646455230531,0.00251669,2626.0,2625.4,0.457]
[1646455230927,1.56483101,2626.0,2625.4,0.457]
[1646455231185,1.56231432,2625.9,2625.4,0.457]
[1646455231381,0.00251669,2626.0,2625.4,0.457]
[1646455231575,2.27136219,2626.3,2625.4,0.457]
[1646455231576,1.56233103,2626.2,2625.4,0.457]
[1646455231977,0.00251798,2626.0,2625.4,0.457]
[1646455232779,1.53733103,2626.2,2625.4,0.457]
[1646455232977,0.00251802,2626.0,2625.4,0.457]
[1646455233983,3.5,2626.2,2625.4,0.457]
[1646455234184,0.91119516,2625.8,2625.4,0.457]
[1646455235320,0.6844611,2626.2,2625.4,0.457]
[1646455235523,0.00251765,2626.0,2625.4,0.457]
[1646455235723,0.00251765,2626.0,2625.5,3.5]
[1646455235925,0.00251765,2626.0,2625.6,0.457]
[1646455236421,1.54965043,2626.3,2625.6,0.457]
[1646455236621,0.86518933,2626.3,2625.6,0.457]
[1646455236821,0.6844611,2626.4,2625.6,0.457]
[1646455236822,0.00251779,2626.0,2625.6,0.457]
[1646455237622,0.6844611,2626.5,2625.6,0.457]
[1646455237823,0.00251779,2626.0,2625.6,0.457]
[1646455238888,1.59281064,2626.5,2625.6,0.457]
[1646455239089,0.00251786,2626.0,2625.6,0.457]
[1646455240096,0.6844611,2626.4,2625.6,0.457]
[1646455240297,0.00251786,2626.0,2625.6,0.457]
[1646455241207,1.08740882,2626.4,2625.6,0.457]
[1646455241398,0.00251786,2626.0,2625.6,0.457]
[1646455242414,1.08740882,2626.4,2625.6,0.457]
[1646455242615,0.00251784,2626.0,2625.6,0.457]
[1646455243618,1.67019324,2626.6,2625.6,0.457]
[1646455243820,0.00251784,2626.0,2625.6,0.457]
[1646455244217,0.00251784,2626.0,2625.8,0.9749886]
[1646455244418,0.00251784,2626.0,2625.9,0.457]
[1646455244819,1.67019324,2626.6,2625.9,0.457]
[1646455245023,0.00251787,2626.1,2625.9,0.457]
[1646455246065,2.72864224,2626.7,2625.9,0.457]
[1646455246265,2.53824224,2626.7,2625.9,0.457]
[1646455246472,0.00251786,2626.1,2625.9,0.457]
[1646455247266,3.22270334,2626.7,2625.9,0.457]
[1646455247467,0.00251786,2626.1,2625.9,0.457]
[1646455248470,3.22270334,2626.7,2625.9,0.457]
[1646455248670,0.00251786,2626.1,2625.9,0.457]
[1646455249671,3.5,2626.6,2625.9,0.457]
[1646455249924,0.00188159,2626.1,2625.9,0.457]
[1646455250424,0.7632106,2625.8,2625.5,2.173]
[1646455250626,0.7632106,2625.8,2625.5,0.457]
[1646455250627,3.5,2625.7,2625.5,0.457]
[1646455250826,0.7632106,2625.8,2625.5,0.457]
[1646455252829,1.56247024,2625.7,2625.5,0.457]
[1646455255372,0.7632106,2625.8,2625.5,0.457]
[1646455255574,1.56233545,2625.7,2625.5,0.457]
[1646455255776,0.7632106,2625.8,2625.5,0.457]
[1646455258015,0.7132106,2625.8,2625.5,0.457]
[1646455261269,0.7132106,2625.8,2625.7,1.0]
[1646455261469,0.7132106,2625.8,2625.7,1.457]
[1646455261668,2.27546563,2625.8,2625.7,1.457]
[1646455262273,0.7132106,2625.8,2625.7,1.457]
[1646455263575,2.27542569,2625.8,2625.7,1.457]
[1646455270072,0.7132106,2625.8,2625.7,1.457]
[1646455272822,2.27532239,2625.8,2625.7,1.457]
[1646455274220,2.27532239,2625.8,2625.7,0.457]
[1646455274423,2.27532239,2625.8,2625.3,0.457]
[1646455274424,5.77532239,2625.8,2625.3,0.457]
[1646455274620,1.22200243,2625.6,2625.3,1.457]
[1646455274821,1.56211179,2625.5,2625.3,1.457]
[1646455275028,1.56211179,2625.5,2625.3,0.457]
[1646455277672,1.51211179,2625.5,2625.3,0.457]
[1646455277869,1.22200243,2625.6,2625.3,0.457]
[1646455278972,1.22200243,2625.6,2625.4,0.91918564]
[1646455279173,1.22200243,2625.6,2625.5,0.457]
[1646455280526,0.7132106,2625.8,2625.6,4.7]
[1646455280724,0.7132106,2625.8,2625.7,0.457]
[1646455280923,0.7132106,2625.8,2625.7,1.457]
[1646455286578,0.7132106,2625.8,2625.7,0.457]
[1646455291469,0.7132106,2625.8,2625.7,1.457]
[1646455301483,0.00229325,2626.0,2625.8,4.0]
[1646455301685,0.00229325,2626.0,2625.9,3.957]
[1646455301884,0.00229325,2626.0,2625.9,1.457]
[1646455302522,1.56186962,2626.3,2625.9,1.457]
[1646455302720,1.1411,2626.7,2626.0,1.16813717]
[1646455302921,0.0022933,2626.1,2626.0,1.16813717]
[1646455303121,0.0022933,2626.1,2626.0,1.62513717]
[1646455303320,0.0022933,2626.1,2626.0,2.62513717]
[1646455303723,1.56180975,2626.4,2626.0,3.62513717]
[1646455303926,0.00229328,2626.2,2626.0,6.12513717]
[1646455304122,0.00229328,2626.2,2626.0,7.12513717]
[1646455304927,1.56178731,2626.5,2626.0,7.12513717]
[1646455305127,0.00229323,2626.2,2626.0,7.12513717]
[1646455305731,0.00229323,2626.2,2626.1,3.5]
[1646455305930,0.00229323,2626.2,2626.1,3.957]
[1646455306171,1.56178731,2626.5,2626.1,4.957]
[1646455306370,0.00229323,2626.2,2626.1,4.957]
[1646455307171,1.56175831,2626.5,2626.1,4.957]
[1646455307375,0.00096,2626.8,2626.1,4.957]
[1646455307573,0.00229322,2626.3,2626.1,4.957]
[1646455307773,0.00229322,2626.3,2626.2,3.5]
[1646455307971,0.00229322,2626.3,2626.2,3.957]
[1646455308173,0.00229322,2626.3,2626.2,4.957]
[1646455308371,1.56170189,2626.6,2626.2,4.957]
[1646455308571,1.56170189,2626.5,2626.2,1.457]
[1646455308773,0.00096,2626.8,2626.4,4.7]
[1646455308774,0.0091714,2626.8,2626.4,4.7]
[1646455309082,0.0091714,2626.8,2626.6,1.0]
[1646455309083,0.0101314,2626.8,2626.6,1.0]
[1646455309273,0.0091714,2626.8,2626.7,0.457]